Cogmind - Beta 14 @@@ ROGUE MODE // 2024.09.23 @ 14:23:05 Player: Afromullet Result: Self-destructed Performance ------------- Evolutions (4) 2000 Regions Visited (9) 1800 Robots Destroyed (65) 325 Value Destroyed (2423) 2423 Prototype IDs (1) 20 Alien Tech Used (0) 0 Bonus (0) 0 TOTAL SCORE: 6568 Bonus ------- None Cogmind --------- Core Integrity 834/850 Matter 138/300 Energy 150/150 System Corruption 3% Temperature Cool (0) Movement Treading (160) Location -6/Factory Parts ------- > --- POWER (2) -------- Micro Nuclear Core > --- PROPULSION (3) --- Improved Treads Medium Treads Improved Medium Treads > --- UTILITY (7) ------ Improved Heat Sink Improved Heat Sink High-capacity Storage Unit Terrain Scanner Targeting Computer ECM Suite Improved Light Armor Plating > --- WEAPON (3) ------- Heavy Laser Gauss Rifle Gauss Rifle > --- INVENTORY (20) --- Light Nuclear Core Reinforced Deuterium Engine Micro Nuclear Core Light Treads Light Treads Carbon-fiber Leg VSS Leg Improved Titanium Leg High-capacity Storage Unit Core Analyzer Transmission Jammer Advanced ECM Suite Advanced ECM Suite Improved Shield Generator Shock Rifle Heavy Ion Cannon Flak Gun Heavy Machine Gun Heavy Machine Gun Heavy Machine Gun Peak State ------------ > --- POWER ------------ Micro Nuclear Core > --- PROPULSION ------- Improved Treads Medium Treads Improved Medium Treads > --- UTILITY ---------- Improved Heat Sink Improved Heat Sink High-capacity Storage Unit Terrain Scanner Targeting Computer Hardened Medium Armor Plating Improved Light Armor Plating > --- WEAPON ----------- Heavy Laser Gauss Rifle Gauss Rifle > --- INVENTORY -------- Light Nuclear Core Reinforced Deuterium Engine Micro Nuclear Core Light Treads Light Treads Carbon-fiber Leg VSS Leg Improved Titanium Leg High-capacity Storage Unit Core Analyzer Transmission Jammer Advanced ECM Suite Advanced ECM Suite Improved Shield Generator Shock Rifle Heavy Ion Cannon Flak Gun Heavy Machine Gun Heavy Machine Gun Heavy Machine Gun [Rating: 49] Favorites ----------- Power Light Ion Engine Engine Light Ion Engine Power Core Micro Nuclear Core Propulsion Aluminum Leg Treads Light Treads Leg Aluminum Leg Wheel Wheel Utility High-capacity Storage Unit Device Improved Heat Sink Storage High-capacity Storage Unit Processor Targeting Computer Protection Hardened Medium Armor Plating Weapon Assault Cannon Energy Gun Spread Laser Energy Cannon Beam Cannon Ballistic Gun Gauss Rifle Ballistic Cannon Assault Cannon Special Weapon Remote Datajack Build | -11 -10 -10 -9 -9 -9 -8 -8 -7 -6 ------- Run | Yrd Mat Min Mat Min Exi Min Mat Fac Fac Slots Evolved 8 | . . . 2 . . . 2 2 2 Power 1 | . . . . . . . 1 . . Propulsion 1 | . . . . . . . 1 . . Utility 5 | . . . 1 . . . . 2 2 Weapon 1 | . . . 1 . . . . . . Parts Attached 134 | 6 1 3 18 3 . 17 34 42 10 Power 19 | 1 . 1 1 1 . 2 4 9 . Engine 14 | 1 . 1 1 1 . 2 4 4 . Core 5 | . . . . . . . . 5 . Reactor . | . . . . . . . . . . Propulsion 31 | 2 . . 6 . . 4 8 8 3 Treads 13 | . . . 4 . . 1 3 2 3 Leg 10 | . . . 2 . . 3 5 . . Wheel 8 | 2 . . . . . . . 6 . Hover . | . . . . . . . . . . Flight . | . . . . . . . . . . Utility 45 | 1 1 1 6 1 . 4 13 11 7 Device 20 | . . 1 2 1 . 2 5 4 5 Storage 2 | 1 1 . . . . . . . . Processor 3 | . . . . . . . 2 1 . Hackware . | . . . . . . . . . . Protection 20 | . . . 4 . . 2 6 6 2 Artifact . | . . . . . . . . . . Weapon 39 | 2 . 1 5 1 . 7 9 14 . Energy Gun 13 | 1 . . 1 . . 5 3 3 . Energy Cannon 5 | . . . 1 . . . . 4 . Ballistic Gun 17 | 1 . 1 3 1 . 1 5 5 . Ballistic Cannon 3 | . . . . . . 1 1 1 . Launcher . | . . . . . . . . . . Special Weapon 1 | . . . . . . . . 1 . Impact Weapon . | . . . . . . . . . . Slashing Weapon . | . . . . . . . . . . Piercing Weapon . | . . . . . . . . . . Special Melee Weapon . | . . . . . . . . . . Unidentified Prototypes 1 | . . . . . . . . 1 . Parts Lost 62 | . . 1 9 . . 12 21 15 4 Power 11 | . . 1 1 . . 1 3 4 1 Propulsion 15 | . . . 3 . . 3 5 3 1 Utility 11 | . . . 1 . . 2 5 1 2 Weapon 25 | . . . 4 . . 6 8 7 . Highest Loss Streak 10 | . . 1 3 . . 8 10 6 4 To Critical Strikes 1 | . . . . . . . 1 . . Average Slot Usage (%) 92 | . 99 98 96 100 100 86 89 89 92 Engine 9 | . 14 12 10 11 11 9 16 7 2 Core 3 | . . . . . . . . 7 6 Treads 5 | . . . . 22 22 6 8 . 12 Leg 6 | . . . 14 . . 11 13 6 . Wheel 7 | . 28 28 5 . . . . 10 4 Device 12 | . . 14 9 11 11 12 6 14 19 Storage 9 | . 27 14 11 11 11 11 9 7 6 Processor 2 | . . . . . . . 5 1 6 Protection 8 | . . . 11 11 11 8 3 10 12 Energy Gun 6 | . 14 14 6 . . 14 8 4 6 Energy Cannon 1 | . . . 7 11 11 . . . . Ballistic Gun 12 | . 14 14 16 22 22 5 12 8 13 Ballistic Cannon 2 | . . . . . . 5 3 5 . Peak Build Rating 49 | 6 8 9 15 15 15 15 21 41 49 Average Rating 23 | 4 7 8 13 14 15 11 16 30 44 On Entrance 13 | . 6 8 9 13 15 15 13 21 36 Naked Turns . | . . . . . . . . . . Heaviest Build 86 | 13 53 50 56 55 55 63 69 86 86 Greatest Support 81 | 20 20 20 40 40 40 40 60 36 81 Greatest Overweight (x) 5 | 1 2 2 5 1 1 5 5 3 4 Average Overweight (x) 1 | . 1 2 2 1 1 3 1 2 1 Largest Inventory Capacity 20 | 8 20 20 20 20 20 20 20 20 20 Average Capacity 19 | 7 19 20 20 20 20 20 20 20 20 Most Carried 20 | 6 14 18 20 20 20 20 17 20 20 Average Carried 16 | 3 10 15 17 18 20 15 11 17 18 Final Capacity 20 | 8 20 20 20 20 20 20 20 20 20 Final Carried 20 | 6 14 17 18 20 20 14 17 18 20 Class Distribution -------------------- 44% | Scavenger-Tank 15% | Tank 13% | Mutant 10% | Scavenger-Gunner 6% | Scavenger-Mutant 6% | Scavenger-Skirmisher Dominant Class ---------------- Mutant | -10/Materials Mutant | -10/Mines Tank | -9/Materials Tank | -9/Mines Tank | -9/Exiles Scavenger-Mutant | -8/Mines Scavenger-Tank | -8/Materials Scavenger-Tank | -7/Factory Scavenger-Tank | -6/Factory Resources | -11 -10 -10 -9 -9 -9 -8 -8 -7 -6 ----------- Run | Yrd Mat Min Mat Min Exi Min Mat Fac Fac Matter Collected 2068 | 240 . 94 278 . . 168 493 733 62 Remotely . | . . . . . . . . . . Salvage Created 2414 | . . 163 472 . . 363 737 556 123 Parts 145 | . . 7 31 . . 19 43 40 5 Haulers Intercepted . | . . . . . . . . . . Recyclers Shooed . | . . . . . . . . . . Parts Field Recycled . | . . . . . . . . . . Retrieved Matter . | . . . . . . . . . . Parts Self-Destructed . | . . . . . . . . . . Prevented . | . . . . . . . . . . Kills | -11 -10 -10 -9 -9 -9 -8 -8 -7 -6 ------- Run | Yrd Mat Min Mat Min Exi Min Mat Fac Fac Combat Hostiles Destroyed 57 | . . 8 12 . . 6 16 13 2 Guns 45 | . . 8 9 . . 3 15 8 2 Cannons 12 | . . . 3 . . 3 1 5 . Classes Destroyed 13 | . . 2 3 . . 2 2 4 . Worker 4 | . . . 1 . . . 2 1 . Builder 1 | . . . . . . . 1 . . Tunneler 1 | . . . . . . . . 1 . Recycler 1 | . . . . . . 1 . . . Watcher 1 | . . . 1 . . . . . . Swarmer 14 | . . 6 4 . . . 3 1 . Grunt 17 | . . 2 3 . . 5 7 . . Brawler 1 | . . . . . . 1 . . . Sentry 9 | . . . 5 . . . 2 . 2 Specialist 4 | . . . . . . . . 4 . Hunter 7 | . . . . . . . 4 3 . Programmer 4 | . . . . . . . . 4 . Heavy 1 | . . . . . . . . 1 . Best Kill Streak 5 | . . 3 5 . . 4 3 2 1 Combat Bots Only 5 | . . 3 5 . . 3 3 2 1 Max Kills in Single Turn 2 | . . 1 2 . . 1 1 2 1 Gunslinging . | . . . . . . . . . . Exploded . | . . . . . . . . . . Melee . | . . . . . . . . . . Uniques/NPCs Destroyed . | . . . . . . . . . . Combat | -11 -10 -10 -9 -9 -9 -8 -8 -7 -6 -------- Run | Yrd Mat Min Mat Min Exi Min Mat Fac Fac Hostile Shots Fired 846 | . . 45 113 2 . 81 254 259 92 Missed 237 | . . 12 23 . . 15 49 100 38 Damage Taken 7764 | . . 338 1057 26 . 1093 2273 2562 415 Core 1136 | . . 76 223 . . 158 313 350 16 Absorbed by Shields 620 | . . . . . . . 301 319 . Redirected to Shielding 57 | . . . 33 . . 24 . . . Core Remaining (%) 53 | 100 . 69 . . . 4 43 50 . Volleys Fired 200 | . . 25 29 . . 28 59 52 7 Largest 3 | . . 2 3 . . 3 3 3 3 Hottest 165 | . . 70 139 . . 100 165 157 125 Shots Fired 484 | . . 50 76 . . 55 141 141 21 Gun 394 | . . 50 56 . . 42 132 93 21 Cannon 90 | . . . 20 . . 13 9 48 . Launcher . | . . . . . . . . . . Special . | . . . . . . . . . . Kinetic 295 | . . 25 40 . . 29 93 94 14 Thermal 171 | . . 25 36 . . 23 43 37 7 Explosive . | . . . . . . . . . . Electromagnetic 18 | . . . . . . 3 5 10 . Robot Hit Streak 20 | . . 12 9 . . 10 14 11 20 Robot Miss Streak 5 | . . 2 3 . . 3 2 5 . Penetration Max 1 | . . . . . . . . 1 . Secondary Targets 6 | . . 1 . . . 2 3 . . Max Gunslinging Chain 1 | . . 1 . . . 1 1 . . Shots Hit Robots 324 | . . 32 44 . . 38 98 93 19 Core Hits 156 | . . 13 23 . . 21 44 49 6 Critical Kills 1 | . . 1 . . . . . . . Critical Parts Destroyed 2 | . . . . . . . . 1 1 Critical Strikes 9 | . . 4 . . . . 2 2 1 Burn 4 | . . 3 . . . . 1 . . Destroy 3 | . . 1 . . . . . 1 1 Blast 1 | . . . . . . . 1 . . Corrupt 1 | . . . . . . . . 1 . Melee Attacks . | . . . . . . . . . . Impact . | . . . . . . . . . . Slashing . | . . . . . . . . . . Piercing . | . . . . . . . . . . Sneak Attacks . | . . . . . . . . . . Combat Hostiles . | . . . . . . . . . . Follow-up Attacks . | . . . . . . . . . . Damage Inflicted 5235 | . . 362 809 . . 461 1247 1964 392 Guns 4026 | . . 362 634 . . 318 1178 1153 381 Cannons 1052 | . . . 175 . . 138 68 671 . Explosions . | . . . . . . . . . . Melee . | . . . . . . . . . . Ramming 157 | . . . . . . 5 1 140 11 Kinetic 3080 | . . 187 494 . . 197 718 1238 246 Thermal 1840 | . . 175 315 . . 225 508 482 135 Explosive . | . . . . . . . . . . Electromagnetic 158 | . . . . . . 34 20 104 . Impact . | . . . . . . . . . . Slashing . | . . . . . . . . . . Piercing . | . . . . . . . . . . Highest Corruption 6 | . . . . . . 6 . 4 3 Average Corruption 3 | . . . . . . 5 . 2 3 Corruption Purged . | . . . . . . . . . . Corruption Blocked . | . . . . . . . . . . Effects 32 | . . . . . . 4 . 23 5 Message Errors 10 | . . . . . . 1 . 7 2 Matter Fused 10 | . . . . . . 1 . 8 1 Heat Flow Errors 3 | . . . . . . . . 3 . Energy Discharges 3 | . . . . . . 1 . 2 . Parts Fused 1 | . . . . . . . . 1 . Data Loss (minor) 2 | . . . . . . . . 1 1 Alerts 2 | . . . . . . . . 1 1 Weapon Failures 1 | . . . . . . 1 . . . Overload Shots . | . . . . . . . . . . Overflow Damage 25 | . . . . . . . . 25 . Projectiles 25 | . . . . . . . . 25 . Explosions . | . . . . . . . . . . Melee . | . . . . . . . . . . Knockbacks 12 | . . . . . . 1 . 11 . Impact 1 | . . . . . . . . 1 . Kinetic 8 | . . . . . . 1 . 7 . Secondary 3 | . . . . . . . . 3 . Self-Inflicted Damage 89 | . . . . . . . . 89 . Shots 2 | . . . . . . . . 2 . Rammed 8 | . . . . . . . 1 6 1 Targets Rammed 18 | . . . . . . 1 2 14 1 Kicked 10 | . . . . . . 1 1 8 . Crushed . | . . . . . . . . . . Highest Temperature 507 | . . 154 171 . . 81 427 507 153 Average Temperature 92 | . . 77 50 . . 34 147 78 98 Received Heat Transfer 1952 | . . 135 498 27 . 594 497 81 120 Effects 4 | . . . . . . . 3 1 . Shutdowns 2 | . . . . . . . 1 1 . Interference 1 | . . . . . . . 1 . . Matter Decay 1 | . . . . . . . 1 . . Siege Activations . | . . . . . . . . . . Robots Corrupted . | . . . . . . . . . . Combat Hostiles . | . . . . . . . . . . Parts Fried . | . . . . . . . . . . Impact Corruptions 1 | . . . . . . . . 1 . Robots Melted . | . . . . . . . . . . Combat Hostiles . | . . . . . . . . . . Parts Melted 1 | . . . 1 . . . . . . Heat Transferred 4195 | . . 740 740 . . 533 1258 665 259 Parts Sabotaged . | . . . . . . . . . . Parts Stolen . | . . . . . . . . . . Parts Stripped . | . . . . . . . . . . Power Chain Reactions . | . . . . . . . . . . Alert | -11 -10 -10 -9 -9 -9 -8 -8 -7 -6 ------- Run | Yrd Mat Min Mat Min Exi Min Mat Fac Fac Peak Influence 307 | . 30 221 307 73 . 65 237 181 75 Initial 85 | . . 11 85 73 . . 21 11 55 Average 81 | . 17 152 165 70 . 49 117 57 48 Maximum Alert Level 1 | . . 1 1 . . . 1 . . Low Security (%) 93 | 100 100 87 73 100 . 100 84 100 100 Level 1 6 | . . 12 26 . . . 15 . . Level 2 . | . . . . . . . . . . Level 3 . | . . . . . . . . . . Level 4 . | . . . . . . . . . . Level 5 . | . . . . . . . . . . High Security . | . . . . . . . . . . Max Security . | . . . . . . . . . . Squads Dispatched 14 | . . . 2 . . . 1 6 5 Investigation 1 | . . . . . . . . . 1 Extermination 4 | . . . . . . . . 3 1 Reinforcement 6 | . . . 2 . . . 1 3 . Assault . | . . . . . . . . . . Garrison 3 | . . . . . . . . . 3 Intercept . | . . . . . . . . . . Searches Triggered . | . . . . . . . . . . Construction Impeded . | . . . . . . . . . . Haulers Reinforced . | . . . . . . . . . . Active Scanning Responses . | . . . . . . . . . . Cargo Convoy Interrupts 1 | . . . . . . . . 1 . Stealth | -11 -10 -10 -9 -9 -9 -8 -8 -7 -6 --------- Run | Yrd Mat Min Mat Min Exi Min Mat Fac Fac Distress Signals 10 | . . . 2 . . . 7 1 . Communications Jammed . | . . . . . . . . . . Distress Signals . | . . . . . . . . . . Times Spotted 107 | . 3 8 20 1 . 6 33 30 6 Peak Tracking Total 10 | . 2 3 3 2 . 3 8 10 2 Tactical Retreats 8 | . . 1 . . . . 2 5 . Traps | -11 -10 -10 -9 -9 -9 -8 -8 -7 -6 ------- Run | Yrd Mat Min Mat Min Exi Min Mat Fac Fac Traps Triggered 3 | . . . . . . . . 1 2 Indirectly . | . . . . . . . . . . Trap Hack Attempts . | . . . . . . . . . . Triggered . | . . . . . . . . . . Disarmed . | . . . . . . . . . . Reprogrammed . | . . . . . . . . . . Reused . | . . . . . . . . . . Traps Extracted . | . . . . . . . . . . Installed . | . . . . . . . . . . Triggered . | . . . . . . . . . . Machines | -11 -10 -10 -9 -9 -9 -8 -8 -7 -6 ---------- Run | Yrd Mat Min Mat Min Exi Min Mat Fac Fac Machines Disabled 11 | . . . 1 . . 1 2 7 . Max in Single Turn 4 | . . . 1 . . 1 1 4 . Machines Repaired . | . . . . . . . . . . Machines Dismantled . | . . . . . . . . . . Machines Sabotaged . | . . . . . . . . . . Overloaded Fab Kills . | . . . . . . . . . . Hacking | -11 -10 -10 -9 -9 -9 -8 -8 -7 -6 --------- Run | Yrd Mat Min Mat Min Exi Min Mat Fac Fac Machines Accessed 1 | . . . . . . . . 1 . Terminals . | . . . . . . . . . . Fabricators . | . . . . . . . . . . Repair Stations 1 | . . . . . . . . 1 . Recycling Units . | . . . . . . . . . . Scanalyzers . | . . . . . . . . . . Garrison Access . | . . . . . . . . . . Total Hacks 2 | . . . . . . . . 2 . Successful 1 | . . . . . . . . 1 . Failed 1 | . . . . . . . . 1 . Catastrophic . | . . . . . . . . . . Database Lockouts . | . . . . . . . . . . Manual . | . . . . . . . . . . Terminals . | . . . . . . . . . . Fabricators . | . . . . . . . . . . Repair Stations 2 | . . . . . . . . 2 . Recycling Units . | . . . . . . . . . . Scanalyzers . | . . . . . . . . . . Garrison Access . | . . . . . . . . . . Terminal Hacks . | . . . . . . . . . . Fabricator Hacks . | . . . . . . . . . . Repair Station Hacks 1 | . . . . . . . . 1 . Scan Component 1 | . . . . . . . . 1 . Recycling Unit Hacks . | . . . . . . . . . . Scanalyzer . | . . . . . . . . . . Garrison Access Hacks . | . . . . . . . . . . Unauthorized Hacks . | . . . . . . . . . . Terminals . | . . . . . . . . . . Fabricators . | . . . . . . . . . . Repair Stations . | . . . . . . . . . . Recycling Units . | . . . . . . . . . . Scanalyzers . | . . . . . . . . . . Garrison Access . | . . . . . . . . . . Data Cores Recovered . | . . . . . . . . . . Used . | . . . . . . . . . . Hacking Detections 1 | . . . . . . . . 1 . Full Trace Events . | . . . . . . . . . . Feedback Events . | . . . . . . . . . . Feedback Blocked . | . . . . . . . . . . Robot Schematics Acquired . | . . . . . . . . . . Robots Built . | . . . . . . . . . . Authchips . | . . . . . . . . . . Time . | . . . . . . . . . . Total Robot Build Rating . | . . . . . . . . . . Part Schematics Acquired . | . . . . . . . . . . Parts Built . | . . . . . . . . . . Authchips . | . . . . . . . . . . Time . | . . . . . . . . . . Total Part Build Rating . | . . . . . . . . . . Parts Repaired . | . . . . . . . . . . Time . | . . . . . . . . . . Parts Recycled . | . . . . . . . . . . Recycled Matter . | . . . . . . . . . . Retrieved Matter . | . . . . . . . . . . Retrieved Components . | . . . . . . . . . . Parts Scanalyzed . | . . . . . . . . . . Part Schematics Acquired . | . . . . . . . . . . Parts Damaged . | . . . . . . . . . . Bothacking | -11 -10 -10 -9 -9 -9 -8 -8 -7 -6 ------------ Run | Yrd Mat Min Mat Min Exi Min Mat Fac Fac Used RIF Installer . | . . . . . . . . . . Robots Hacked . | . . . . . . . . . . Non-combat . | . . . . . . . . . . Combat . | . . . . . . . . . . Robot Hacks Applied . | . . . . . . . . . . Relay Couplers Released 3 | . . . . . . . . 3 . Programmers 3 | . . . . . . . . 3 . Fabnet Peak Effective % . | . . . . . . . . . . Robots Rewired . | . . . . . . . . . . Allies Hacked . | . . . . . . . . . . Hacks Repelled . | . . . . . . . . . . Allies | -11 -10 -10 -9 -9 -9 -8 -8 -7 -6 -------- Run | Yrd Mat Min Mat Min Exi Min Mat Fac Fac Total Allies . | . . . . . . . . . . Largest Group . | . . . . . . . . . . Highest-Rated Group . | . . . . . . . . . . Highest-Rated Ally . | . . . . . . . . . . Total Orders . | . . . . . . . . . . Ally Attacks . | . . . . . . . . . . Total Damage . | . . . . . . . . . . Kills . | . . . . . . . . . . Allies Corrupted . | . . . . . . . . . . Allies Melted . | . . . . . . . . . . Intel | -11 -10 -10 -9 -9 -9 -8 -8 -7 -6 ------- Run | Yrd Mat Min Mat Min Exi Min Mat Fac Fac Robot Analysis Total . | . . . . . . . . . . Derelict Logs Recovered 1 | . . 1 . . . . . . . Drone Launches . | . . . . . . . . . . Drone Recoveries . | . . . . . . . . . . Exploration | -11 -10 -10 -9 -9 -9 -8 -8 -7 -6 ------------- Run | Yrd Mat Min Mat Min Exi Min Mat Fac Fac Turns Passed 5923 | 85 205 338 609 415 72 286 1048 2040 825 Spaces Moved 2771 | 99 181 233 186 171 31 53 284 1015 518 Core 32 | 32 . . . . . . . . . Treads 633 | . . . 11 171 31 8 103 . 309 Legs 588 | . . . 112 . . 45 181 250 . Wheels 1518 | 67 181 233 63 . . . . 765 209 Hover . | . . . . . . . . . . Flight . | . . . . . . . . . . Fastest Speed 50 | 50 80 110 110 240 240 240 160 95 135 Average Speed 175 | 70 108 110 210 240 240 350 275 168 150 Slowest Speed 470 | 100 110 110 470 240 240 470 470 330 160 Overloaded Moves . | . . . . . . . . . . Propulsion Burnouts . | . . . . . . . . . . Robots Hopped . | . . . . . . . . . . Cave-ins Triggered . | . . . . . . . . . . Exploration Rate (%) 24 | 4 32 63 23 41 8 16 20 21 15 Regions Visited 9 Branch Regions 4 Pre-discovered Areas 1 | . . 1 . . . . . . . Known Exits Taken . | . . . . . . . . . . Unknown Exits Taken 9 | 1 1 1 1 1 1 1 1 1 . Scrap Searched 1 | . . 1 . . . . . . . Spaces Dug . | . . . . . . . . . . Terrain Destroyed 1 | . . . . . . . . 1 . Melee . | . . . . . . . . . . Projectile 1 | . . . . . . . . 1 . AOE . | . . . . . . . . . . Terrain Rammed . | . . . . . . . . . . Walls Destroyed . | . . . . . . . . . . Machines Disabled . | . . . . . . . . . . Actions | -11 -10 -10 -9 -9 -9 -8 -8 -7 -6 --------- Run | Yrd Mat Min Mat Min Exi Min Mat Fac Fac Total 3437 | 110 189 267 344 176 30 100 436 1236 549 Wait 158 | . . 2 85 . . . 21 48 2 Move 2762 | 98 180 232 185 170 30 52 283 1014 518 Hop . | . . . . . . . . . . Pick Up 106 | 6 8 4 17 2 . . 28 34 7 Fast Attach 22 | 6 1 . 1 . . 4 3 4 3 Attach 86 | . . 2 13 1 . 10 27 26 7 Detach 18 | . . . 2 . . 2 4 8 2 Swap 26 | . . 1 4 2 . 3 4 12 . Drop 41 | . . 1 8 1 . . 5 24 2 Fire 200 | . . 25 29 . . 28 59 52 7 Melee . | . . . . . . . . . . Ram 6 | . . . . . . . . 6 . Kick 10 | . . . . . . 1 1 8 . Crush 2 | . . . . . . . 1 . 1 Escape Stasis . | . . . . . . . . . . Rewire . | . . . . . . . . . . Trap . | . . . . . . . . . . Miscellaneous . | . . . . . . . . . . Route ------- -11/Scrapyard -10/Materials -10/Mines -9/Materials -9/Mines (discovered 2 exits: [*Exi] / [*Zio]) -9/Exiles -8/Mines -8/Materials -7/Factory -6/Factory History --------- Turn | Location | Event 4 | -11/Scrapyard | Discovered new exit (range 14) 86 | -11/Scrapyard | Entered Materials 254 | -10/Materials | Discovered new exit (range 9) 291 | -10/Materials | Entered Mines 298 | -10/Mines | Received a Rocket Launcher from a helpful Derelict 313 | -10/Mines | Build established: Mutant 365 | -10/Mines | A weapon hastily lodged in a ceiling crevice suddenly fell to the ground 369 | -10/Mines | Learned location of Storage (-8) 625 | -10/Mines | Discovered new exit (range 3) 629 | -10/Mines | Entered Materials 629 | -9/Materials | Evolved 2 slots: Utility x1, Weapon x1 802 | -9/Materials | Lost 3 parts (1n1u1w) 1196 | -9/Materials | Discovered new exit (range 14) 1224 | -9/Materials | Core integrity fell below 50% 1238 | -9/Materials | Entered Mines 1262 | -9/Mines | Lost 3 parts (2n1w) 1341 | -9/Mines | A Derelict revealed a hidden shortcut to a safe place 1354 | -9/Mines | Build established: Tank 1427 | -9/Mines | Joined a pair of Derelicts in attacking an 0b10 outpost 1639 | -9/Mines | Deemed a non-threat by the Exiles lab entrance 1641 | -9/Mines | Discovered new exit (range 5) 1653 | -9/Mines | Entered Exiles 1689 | -9/Exiles | Discovered new exit (range 15) 1725 | -9/Exiles | Entered Mines 1786 | -8/Mines | Lost 4 parts (1n3w) 1874 | -8/Mines | Core integrity fell below 20% 1910 | -8/Mines | Lost 8 parts (1p2n2u3w) 1988 | -8/Mines | Discovered new exit (range 7) 2011 | -8/Mines | Entered Materials 2011 | -8/Materials | Evolved 2 slots: Power x1, Propulsion x1 2186 | -8/Materials | Lost 3 parts (1p1u1w) 2272 | -8/Materials | Lost 10 parts (1p3n3u3w) 2651 | -8/Materials | Core integrity fell below 50% 2701 | -8/Materials | Lost 8 parts (1p2n1u4w) 2805 | -8/Materials | Discovered new exit (range 16) 3059 | -8/Materials | Entered Factory 3059 | -7/Factory | Evolved 2 slots: Utility x2 3366 | -7/Factory | Build established: Scavenger-Skirmisher 3779 | -7/Factory | Build established: Scavenger-Tank 3947 | -7/Factory | Cargo convoy interrupted 4005 | -7/Factory | Lost 3 parts (2p1w) 4070 | -7/Factory | Lost 3 parts (1n2w) 4981 | -7/Factory | Discovered new exit (range 16) 5093 | -7/Factory | Lost 6 parts (1p1n1u3w) 5099 | -7/Factory | Entered another Factory area 5099 | -6/Factory | Evolved 2 slots: Utility x2 5426 | -6/Factory | Lost 4 parts (1p1n2u) 5873 | -6/Factory | Build established: Scavenger-Gunner 5924 | -6/Factory | Self-destructed Last Messages --------------- Acquired 62 matter. R-10 Processor collects Imp. Heat Sink. K-01 Serf collects debris. Acquired Lgt. Treads. K-01 Serf collects debris. Dropped Hrd. Medium Armor Plating. Acquired ECM Suite. Triggered EM Surge Trap. The floor emits a surge of raw power. System corrupted (+3). System corrupted: IFF burst signal emitted. System corrupted: Component data lost. T-07 Excavator is excavating. LC O2/BH,PHYS/C7V2R:TPC6=HYXLU T-07 Excavator is excavating. ALERT: Rogue bot located, Programmers report to Factory Zone 1D. System corrupted: Matter fused (-9). Slammed into K-01 Serf. UJEYMW/,>